bitfinex/quotes_ETHUSD_20250827
["timestamp","ask_amount","ask_price","bid_price","bid_amount"]
[1756310379077,0.1064,4667.4,4667.2,2.14259984]
[1756310379659,0.1064,4667.4,4667.3,2.45286636]
[1756310379835,0.1064,4667.4,4667.3,2.90356636]
[1756310380771,0.1064,4667.4,4667.3,0.761]
[1756310381198,4.57900279,4667.4,4665.6,1.649]
[1756310381478,0.1072,4667.0,4666.3,2.14301877]
[1756310381648,5.86583464,4667.4,4666.1,2.59478241]
[1756310381649,0.1072,4666.5,4666.1,2.59478241]
[1756310381850,0.1072,4666.2,4666.1,0.001]
[1756310382070,0.1072,4666.2,4666.1,2.14411737]
[1756310382444,0.1072,4666.2,4666.1,2.45441737]
[1756310382772,0.1072,4666.2,4666.1,2.90511737]
[1756310383774,0.1072,4666.5,4666.3,2.14300775]
[1756310383975,0.1072,4666.5,4666.4,0.3103]
[1756310384166,0.1072,4666.5,4666.1,5.8651053]
[1756310384675,0.1072,4666.5,4666.3,2.14301392]
[1756310384855,0.1072,4666.5,4666.2,2.1430632]
[1756310385057,0.1072,4666.5,4666.3,2.14302461]
[1756310385256,0.1072,4666.5,4666.1,3.722]
[1756310385466,0.1072,4666.5,4666.2,2.14302658]
[1756310385653,0.1072,4666.5,4666.3,2.14301005]
[1756310385973,0.1072,4666.5,4666.4,2.14297959]
[1756310386675,0.1095,4666.5,4666.4,2.14297959]
[1756310386852,0.1072,4666.5,4666.1,0.001]
[1756310387053,3.0,4666.8,4666.1,0.001]
[1756310387255,0.1072,4666.2,4666.1,0.001]
[1756310388181,0.1072,4666.2,4666.1,0.762]
[1756310388382,0.1072,4666.2,4666.1,2.90511737]
[1756310388950,3.72,4666.8,4666.1,2.90511737]
[1756310389252,0.1072,4666.4,4666.1,0.762]
[1756310389450,0.1072,4666.4,4666.2,2.59373423]
[1756310389676,0.1072,4666.4,4666.2,2.14303423]
[1756310389882,0.44268619,4666.4,4666.3,2.90402552]
[1756310390398,0.44268619,4666.4,4666.2,5.86307145]
[1756310390399,0.44268619,4666.4,4666.2,3.72]
[1756310390546,0.44268619,4666.4,4666.3,2.14302552]
[1756310391795,0.44268619,4666.4,4666.2,5.86306244]
[1756310392012,0.44268619,4666.4,4666.3,2.14302552]
[1756310392284,0.44268619,4666.4,4666.2,3.72]
[1756310392669,0.44268619,4666.4,4666.2,5.86307041]
[1756310392878,0.0023,4666.3,4666.1,2.14411244]
[1756310393090,0.0023,4666.3,4666.1,5.86411244]
[1756310393510,0.0023,4666.3,4666.2,2.14307145]
[1756310394017,0.44268619,4666.4,4666.2,0.761]
[1756310394190,0.44268619,4666.4,4666.3,2.59372552]
[1756310394511,0.44268619,4666.4,4666.3,2.14302552]
[1756310395018,0.44498619,4666.4,4666.1,5.86411079]
[1756310395228,0.1095,4666.4,4666.1,5.86411079]
[1756310395380,0.1072,4666.4,4666.2,2.14305174]
[1756310395572,0.1072,4666.4,4666.1,4.1717]
[1756310395801,0.1072,4666.4,4666.3,2.14302552]
[1756310396429,0.1072,4666.4,4666.3,2.45332552]
[1756310397429,0.1072,4666.4,4666.3,2.90402552]
[1756310397635,0.1072,4666.4,4666.3,0.3103]
[1756310397835,0.1072,4666.4,4666.3,2.45332552]
[1756310398010,0.1072,4666.4,4666.3,2.90402552]
[1756310399730,10.7482,4667.7,4667.0,2.14266797]
[1756310399926,0.1072,4667.1,4667.0,5.86166797]
[1756310400141,0.1072,4667.1,4667.0,3.719]
[1756310400542,0.1072,4667.1,4667.0,4.0293]
[1756310401262,0.002,4667.4,4667.0,4.0293]
[1756310401547,0.1092,4667.4,4667.1,0.4507]
[1756310401911,0.1092,4667.4,4667.3,0.3166]
[1756310402847,0.002,4667.4,4667.3,0.7767]
[1756310403349,0.0043,4667.4,4666.9,3.339]
[1756310403549,0.79911682,4667.3,4666.9,3.339]
[1756310403727,0.1072,4667.0,4666.9,3.339]
[1756310403927,0.1072,4667.0,4666.9,5.48175]
[1756310404152,7.43036162,4667.0,4665.6,0.001]
[1756310404372,0.1072,4666.2,4665.9,2.14319896]
[1756310404519,0.1072,4666.2,4665.6,0.001]
[1756310404724,0.1072,4666.2,4666.1,2.92081737]
[1756310404936,0.1072,4666.2,4666.1,0.7777]
[1756310405136,0.1072,4666.2,4666.1,2.92081737]
[1756310405536,0.022,4667.8,4666.1,5.6641017]
[1756310405736,0.022,4667.8,4667.0,2.14268473]
[1756310405737,0.1072,4667.3,4667.0,2.14268473]
[1756310405944,0.0023,4667.1,4666.6,0.1072]
[1756310406232,2.34311069,4667.7,4666.7,6.32093236]
[1756310406444,0.20068208,4667.6,4667.3,0.3166]
[1756310406648,0.20068208,4667.5,4667.3,0.3166]
[1756310406846,0.20068208,4667.7,4667.3,2.45916636]
[1756310407165,0.1092,4667.4,4667.3,2.45916636]
[1756310407329,0.1092,4667.4,4667.3,0.3166]
[1756310407742,0.002,4667.4,4667.3,2.91926636]
[1756310407964,3.0,4667.3,4665.6,0.001]
[1756310408180,0.1117,4666.2,4664.4,0.1072]
[1756310408458,2.14353082,4665.2,4663.8,0.1320848]
[1756310408661,4.95592484,4665.2,4664.0,2.14406982]
[1756310408835,11.65489241,4665.2,4663.8,0.02]
[1756310409035,13.42744363,4665.2,4663.9,2.14508653]
[1756310409442,7.94723581,4665.2,4663.9,1.961]
[1756310409642,7.94953581,4665.2,4663.9,0.001]
[1756310409842,10.09306663,4665.2,4663.9,0.001]
[1756310410057,7.94723581,4665.2,4664.4,2.14385438]
[1756310410266,11.71123581,4665.2,4664.4,2.14385438]
[1756310410463,11.71123581,4665.2,4664.5,2.1438499]
[1756310410764,7.94723581,4665.2,4664.7,2.14375971]
[1756310410964,2.57838063,4665.2,4664.6,0.4601]
[1756310411276,0.72965579,4665.2,4664.6,0.4601]
[1756310411589,0.72965579,4665.2,4665.1,2.92127677]
[1756310411732,0.1072,4665.7,4665.3,2.1434756]
[1756310411934,0.1072,4665.7,4665.1,0.7777]
[1756310411935,0.1072,4665.7,4665.6,2.14334705]
[1756310412352,0.751821,4665.7,4665.6,2.14334705]
[1756310412538,0.751821,4665.7,4665.1,0.001]
[1756310412751,0.20031866,4665.6,4665.1,0.001]
[1756310413130,0.1072,4665.2,4665.1,0.001]
[1756310413528,0.1072,4665.2,4665.1,2.46117677]
[1756310413733,0.1072,4665.2,4665.1,2.92127677]
[1756310414030,0.1072,4665.2,4665.1,2.46117677]
[1756310414369,0.1072,4665.2,4665.1,2.14457677]
[1756310414665,0.1072,4665.2,4665.1,2.46117677]
[1756310414965,0.1072,4665.2,4665.1,2.92127677]
[1756310415168,0.44277188,4665.2,4665.1,2.14457677]
[1756310415369,0.1072,4665.2,4665.1,2.46117677]
[1756310415550,0.20025715,4665.4,4665.3,2.14348487]
[1756310415751,0.30745715,4665.4,4665.3,2.14348487]
[1756310415973,0.30746059,4665.4,4665.3,2.92018487]
[1756310416177,0.30746059,4665.4,4665.3,2.46008487]
[1756310416365,0.1072,4665.4,4665.3,2.46008487]
[1756310416689,0.1072,4665.4,4665.2,2.14353082]
[1756310416875,0.1072,4665.4,4665.2,2.14348617]
[1756310417063,0.1072,4665.4,4665.1,0.001]
[1756310417064,0.1072,4665.4,4665.1,2.14457192]
[1756310417449,0.20026059,4665.5,4665.4,2.14343893]
[1756310417653,0.1072,4665.6,4665.3,0.3166]
[1756310417892,0.1072,4665.6,4665.4,0.4601]
[1756310418092,0.1072,4665.6,4665.1,0.001]
[1756310418291,0.0023,4665.2,4665.1,0.001]
[1756310419064,0.8533742,4665.2,4665.1,0.001]
[1756310419266,3.19710741,4665.2,4665.1,0.001]
[1756310419711,2.14397529,4664.3,4664.1,0.001]
[1756310420002,9.20941239,4664.2,4664.1,0.001]
[1756310420186,5.27492696,4664.2,4664.1,0.001]
[1756310420386,9.97793601,4664.2,4664.1,0.001]
[1756310420564,7.83394562,4664.2,4664.1,0.001]
[1756310420893,0.33570588,4664.2,4664.1,2.92173636]
[1756310421093,0.33570588,4664.2,4664.1,0.7777]
[1756310421280,0.33570588,4664.2,4664.1,0.001]
[1756310421661,0.33800588,4664.2,4664.1,0.001]
[1756310421866,0.53802252,4664.2,4664.1,0.001]
[1756310422195,0.64522252,4664.2,4664.1,0.001]
[1756310422397,8.02613516,4664.2,4664.1,0.001]
[1756310422699,8.31205188,4664.2,4664.1,0.001]
[1756310423000,2.14445016,4663.2,4662.8,0.02]
[1756310423168,10.76041834,4663.2,4662.8,0.02]
[1756310423368,12.16259801,4663.2,4662.8,0.02]
[1756310423699,12.49836765,4663.2,4662.8,0.02]
[1756310424000,6.58691749,4663.2,4662.8,0.02]
[1756310424293,5.29193782,4663.2,4662.8,0.02]
[1756310424998,8.95173782,4663.2,4662.8,0.02]
[1756310425297,8.5232,4663.2,4662.8,0.02]
[1756310425697,4.95800011,4663.2,4662.8,0.02]
[1756310425871,10.87245027,4663.2,4662.8,0.02]
[1756310426066,10.02968614,4663.2,4662.8,0.02]
[1756310426584,12.06064575,4663.2,4662.8,0.02]
[1756310426764,10.11558782,4663.2,4662.8,0.02]
[1756310427198,8.49003798,4663.2,4662.8,0.02]
[1756310427498,10.11558782,4663.2,4662.8,0.02]
[1756310427701,12.26003798,4663.2,4662.8,0.02]
[1756310428767,12.48343798,4663.2,4662.8,0.02]
[1756310430393,12.81923178,4663.2,4662.8,0.02]
[1756310430793,2.14463412,4662.8,4662.7,0.001]
[1756310431013,21.031065,4662.3,4662.2,0.001]
[1756310431220,2.14491012,4662.2,4662.1,0.001]
[1756310431530,2.34430235,4662.2,4662.1,0.001]
[1756310431711,2.90355492,4662.2,4662.1,0.001]
[1756310432033,5.06267521,4662.2,4662.1,0.2861]
[1756310432191,0.7284788,4662.2,4662.1,0.7155]
[1756310432390,4.29108657,4662.2,4662.1,0.7155]
[1756310432792,4.20735257,4662.2,4662.1,0.001]
[1756310433030,7.40640874,4662.2,4662.1,0.001]
[1756310433231,10.19653486,4662.2,4662.1,0.001]
[1756310433527,11.32748752,4662.2,4662.1,0.001]
[1756310434094,5.4182774,4662.2,4662.1,0.001]
[1756310434322,3.84427217,4662.2,4662.1,0.7155]
[1756310434524,3.30625617,4662.2,4662.1,0.001]
[1756310434731,7.07025617,4662.2,4662.1,0.001]
[1756310435037,9.21746629,4662.2,4662.1,0.001]
[1756310435217,9.21746629,4662.2,4662.1,0.2861]
[1756310435218,7.07025617,4662.2,4662.1,0.2861]
[1756310435543,8.54479569,4662.2,4662.1,0.001]
[1756310435696,4.07025617,4662.2,4662.1,2.86045613]
[1756310435898,0.1072,4662.2,4662.1,2.86045613]
[1756310436097,3.764,4662.5,4662.1,2.86045613]
[1756310436098,3.8712,4662.5,4662.2,2.14487379]
[1756310436326,3.8712,4662.5,4662.2,0.4294]
[1756310436526,3.8712,4662.5,4662.4,0.2851]
[1756310436731,4.07037669,4662.5,4662.4,0.7145]
[1756310436913,4.07037725,4662.5,4662.4,0.7145]
[1756310437219,4.07049775,4662.5,4662.1,0.001]
[1756310437414,0.1072,4662.2,4662.1,2.14594694]
[1756310437696,3.8722,4662.2,4662.1,2.14594694]
[1756310437902,4.07149775,4662.2,4662.1,2.43104694]
[1756310438199,4.07149775,4662.2,4662.1,2.86044694]
[1756310440499,0.19946568,4662.3,4662.1,2.14595265]
[1756310440695,0.19948105,4662.2,4662.1,0.001]
[1756310441125,3.96148105,4662.2,4662.1,2.86045613]
[1756310441334,3.96148105,4662.2,4662.1,0.001]
[1756310441520,9.51555928,4662.2,4662.1,0.001]
[1756310441726,7.37064916,4662.2,4662.1,0.001]
[1756310441931,9.51555928,4662.2,4662.1,0.001]
[1756310442137,16.54555928,4662.2,4662.1,0.001]
[1756310442413,2.14504815,4661.9,4661.8,0.02]
[1756310442626,6.1065292,4661.9,4661.8,0.02]
[1756310442914,6.1110292,4661.9,4661.8,0.02]
[1756310443308,6.2182292,4661.9,4661.8,0.02]
[1756310443508,6.2172292,4661.9,4661.8,0.02]
[1756310443708,6.2172292,4661.9,4661.7,0.001]
[1756310443709,2.14527824,4661.4,4661.2,0.001]
[1756310443947,11.87948105,4661.4,4661.2,0.001]
[1756310444138,15.64448105,4661.4,4661.2,0.001]
[1756310444322,15.65548105,4661.4,4661.2,0.001]
[1756310444521,18.2076274,4661.4,4661.2,0.001]
[1756310444721,16.06234916,4661.4,4661.2,0.001]
[1756310444938,14.4316274,4661.4,4661.2,0.001]
[1756310445249,3.0,4661.3,4660.9,0.001]
[1756310445425,18.03166322,4661.0,4660.9,0.001]
[1756310445621,24.06040227,4661.0,4660.9,0.001]
[1756310445823,18.13493993,4661.0,4660.9,0.001]
[1756310446043,6.02623905,4661.0,4660.9,0.001]
[1756310446228,6.12694339,4661.0,4660.9,0.001]
[1756310446428,6.12924339,4661.0,4660.9,0.001]
[1756310446638,5.92976234,4661.0,4660.9,0.001]
[1756310446821,6.12958999,4661.0,4660.9,0.001]
[1756310447744,6.12728999,4661.0,4660.9,0.001]
[1756310447945,12.13909436,4661.0,4660.9,0.001]
[1756310448111,14.2845567,4661.0,4660.9,0.001]
[1756310448316,2.14550837,4660.9,4660.8,0.021]
[1756310448545,5.14555441,4660.8,4660.7,0.001]
[1756310448751,9.12338206,4660.8,4660.7,0.001]
[1756310448944,11.06599777,4660.8,4660.7,0.001]
[1756310449467,2.14569252,4660.5,4660.4,0.001]
[1756310449761,10.77152017,4660.5,4660.4,0.001]
[1756310449960,18.02492017,4660.5,4660.4,0.001]
[1756310450128,18.02942017,4660.5,4660.4,0.001]
[1756310450317,16.1070727,4660.5,4660.4,0.001]
[1756310450519,18.47396522,4660.5,4660.4,0.001]
[1756310451219,14.89907385,4660.5,4660.4,0.001]
[1756310451438,18.67407385,4660.5,4660.4,0.001]
[1756310452321,14.89907385,4660.5,4660.4,0.001]
[1756310452522,14.89907385,4660.5,4660.4,0.2861]
[1756310452523,15.85293628,4660.5,4660.4,0.2861]
[1756310452846,15.85293628,4660.5,4660.4,0.001]
[1756310453021,12.07993628,4660.5,4660.4,0.001]
[1756310453220,15.85293628,4660.5,4660.4,0.001]
[1756310453461,17.9986288,4660.5,4660.4,0.001]
[1756310453956,7.42993628,4660.5,4660.4,0.001]
[1756310454145,0.19982765,4660.5,4660.4,2.14673856]
[1756310454341,0.19982765,4660.5,4660.4,2.57609525]
[1756310454745,0.19982765,4660.5,4660.4,0.43035669]
[1756310454933,0.19982765,4660.5,4660.4,2.14673856]
[1756310456449,0.19982765,4660.5,4660.4,0.001]
[1756310456642,0.19982765,4660.5,4660.4,2.14673856]
[1756310456967,0.33598755,4660.8,4660.5,2.14569252]
[1756310457173,3.9721292,4660.7,4660.6,2.14564648]
[1756310457375,0.2001292,4660.7,4660.6,2.14564648]
[1756310457586,0.33598755,4660.8,4660.7,2.14560044]
[1756310457748,4.30713907,4660.8,4660.7,2.14560044]
[1756310458066,0.20015152,4660.8,4660.7,2.14560044]
[1756310458368,0.20015152,4660.8,4660.4,0.001]
[1756310458532,3.97015152,4660.7,4660.4,0.001]
[1756310458738,0.20015152,4660.6,4660.4,0.001]
[1756310458932,0.20015152,4660.5,4660.4,0.001]
[1756310459153,3.97615152,4660.5,4660.4,0.001]
[1756310459370,0.20015152,4660.5,4660.4,0.001]
[1756310459534,3.97615152,4660.5,4660.4,0.001]
[1756310459736,3.97515152,4660.5,4660.4,0.001]
[1756310460266,0.20015152,4660.5,4660.4,2.14673856]
[1756310460458,0.20015152,4660.5,4660.4,2.36151242]
[1756310460765,0.20015152,4660.5,4660.4,2.14673856]
[1756310461781,3.773,4661.2,4661.0,2.14546234]
[1756310461986,0.20019498,4661.1,4660.4,0.001]
[1756310462282,0.20019498,4661.0,4660.9,2.14547291]
[1756310462465,0.20019498,4661.0,4660.9,2.80547291]
[1756310462780,0.20019498,4661.0,4660.9,3.67767903]
[1756310463186,0.33588246,4661.7,4661.6,2.1451862]
[1756310463389,0.53607556,4661.7,4661.6,2.1451862]
[1756310464191,0.2001931,4661.7,4661.6,2.9123862]
[1756310464352,0.02,4661.8,4661.7,2.80514018]
[1756310465073,0.20012543,4662.3,4662.2,2.80491012]
[1756310465246,0.02,4662.8,4662.7,2.14468012]
[1756310465453,0.22005355,4662.8,4662.7,2.14468012]
[1756310466161,0.02,4662.8,4662.7,2.14468012]
[1756310466853,0.22001284,4662.8,4662.7,2.14468012]
[1756310467386,0.02,4662.8,4662.7,2.14468012]
[1756310468081,0.02,4662.8,4662.7,3.24434311]
[1756310469095,1e-08,4662.8,4662.7,6.43060272]
[1756310469395,1e-08,4662.8,4662.7,6.51635592]
[1756310470797,1e-08,4662.8,4662.7,5.85635592]
[1756310471027,1e-08,4662.8,4662.7,2.41669293]
[1756310471502,1e-08,4662.8,4662.7,2.25188012]
[1756310473414,1e-08,4662.8,4662.7,2.14468012]
[1756310473785,1e-08,4662.8,4662.7,2.25188012]
[1756310474481,1e-08,4662.8,4662.7,2.91188012]
[1756310474683,1e-08,4662.8,4662.7,3.81022782]
[1756310477227,1e-08,4663.2,4663.1,2.14449615]
[1756310477533,1e-08,4663.2,4663.1,6.69014111]
[1756310477739,1e-08,4663.2,4663.1,6.66869615]
[1756310480137,1e-08,4663.2,4663.1,6.00869615]
[1756310480506,1e-08,4663.2,4663.1,7.48402211]
[1756310481307,1e-08,4663.2,4663.1,3.72702211]
[1756310481638,1e-08,4663.2,4663.1,7.50446707]
[1756310481935,1e-08,4663.2,4663.1,7.48302211]
[1756310485450,1e-08,4663.2,4663.1,2.14449615]
[1756310485612,1e-08,4663.2,4662.9,2.14458813]
[1756310486050,1e-08,4663.2,4662.8,0.1272]
[1756310486258,1e-08,4663.2,4662.8,0.02]
[1756310486431,0.1072,4662.9,4662.8,2.16463412]
[1756310486764,0.1072,4662.9,4662.8,0.02]
[1756310488135,2.45157574,4662.9,4662.8,0.02]
[1756310488724,0.30698761,4662.9,4662.8,0.02]
[1756310488944,2.45157574,4662.9,4662.8,0.02]
[1756310489146,3.1471811,4662.9,4662.8,0.02]
[1756310489354,10.2571811,4662.9,4662.8,0.02]
[1756310489556,10.45734756,4662.9,4662.8,0.02]
[1756310490334,14.20634756,4662.9,4662.8,0.02]
[1756310490549,14.20634756,4662.9,4662.6,0.001]
[1756310490550,3.0,4662.8,4662.6,0.001]
[1756310490830,7.68788937,4662.7,4662.6,0.001]
[1756310491940,11.43588937,4662.7,4662.6,0.001]
[1756310493381,11.43488937,4662.7,4662.6,0.001]
[1756310493612,7.68791984,4662.7,4662.6,0.001]
[1756310493899,11.54211984,4662.7,4662.6,0.001]
[1756310494197,4.79511984,4662.7,4662.6,0.001]
[1756310494412,8.54111984,4662.7,4662.6,0.001]
[1756310495061,6.39786466,4662.7,4662.6,0.001]
[1756310495661,3.50718454,4662.7,4662.6,0.001]
[1756310495867,7.05198761,4662.7,4662.6,0.001]
[1756310496258,4.05198761,4662.7,4662.6,0.001]
[1756310496503,0.30698761,4662.7,4662.6,2.14572611]
[1756310496667,0.30698761,4662.7,4662.6,0.001]
[1756310496862,2.65717888,4662.7,4662.6,0.001]
[1756310497090,2.85720512,4662.7,4662.6,0.001]
[1756310497308,0.712525,4662.7,4662.6,0.001]
[1756310497462,0.30722174,4662.7,4662.6,0.001]
[1756310497996,0.44297067,4662.7,4662.6,2.14572611]
[1756310498163,0.64299241,4662.7,4662.6,2.14572611]
[1756310499065,0.44297067,4662.7,4662.6,0.001]
[1756310499260,0.1072,4662.7,4662.6,2.14572611]
[1756310499501,0.19999414,4662.9,4662.8,2.14463412]
[1756310499675,0.1072,4663.0,4662.9,2.14458813]
[1756310499880,0.19998736,4663.2,4663.1,2.14449615]
[1756310500073,1e-08,4663.2,4662.6,0.43005375]
[1756310500274,0.10720001,4663.2,4662.8,2.14462722]
[1756310500488,0.10720001,4663.2,4662.9,2.14457755]
[1756310500676,0.19998736,4663.2,4662.6,0.001]
[1756310500882,0.1072,4662.8,4662.7,2.14467832]
[1756310502329,0.19998735,4662.9,4662.8,2.14463412]
[1756310502634,1e-08,4663.2,4662.9,2.14458813]
[1756310502635,0.33574418,4663.2,4662.9,2.14458813]
[1756310502818,0.33574418,4663.2,4663.0,2.14454214]
[1756310502819,1e-08,4663.2,4663.0,2.14454214]
[1756310503202,1e-08,4663.2,4663.1,2.14449615]
[1756310508452,1e-08,4663.2,4662.6,0.001]
[1756310508759,0.1072,4663.1,4663.0,2.14452254]
[1756310509129,0.1072,4663.1,4663.0,2.14454214]
[1756310509633,1e-08,4663.2,4663.1,2.14449615]
[1756310509962,0.10720001,4663.2,4662.6,2.14571145]
[1756310510124,0.10720001,4663.2,4662.7,2.14468012]
[1756310510324,0.10720001,4663.2,4662.9,2.1445528]
[1756310510641,0.10720001,4663.2,4662.6,0.001]
[1756310511040,0.10720001,4663.2,4662.9,2.14455192]
[1756310511344,0.10720001,4663.2,4662.8,2.14461177]
[1756310511536,0.10720001,4663.2,4662.6,0.001]
[1756310511740,0.10720001,4663.2,4663.0,2.14453948]
[1756310512142,0.10720001,4663.2,4662.9,2.14457785]
[1756310512658,0.10720001,4663.2,4663.0,2.14453111]
[1756310513340,1e-08,4663.2,4663.1,2.14449615]
[1756310514054,1e-08,4663.2,4662.6,0.001]
[1756310514255,0.1072,4663.1,4662.9,2.14457216]
[1756310514460,0.1072,4663.1,4663.0,2.14454214]
[1756310514757,0.1072,4663.1,4662.6,0.001]
[1756310515161,0.1072,4663.1,4662.7,2.14467341]
[1756310515456,0.33573502,4663.0,4662.7,2.14467341]
[1756310515645,0.33573502,4663.0,4662.6,0.001]
[1756310515849,1e-08,4663.2,4663.0,0.66]
[1756310516031,1e-08,4663.2,4663.1,6.55794111]
[1756310516233,1e-08,4663.2,4663.1,6.53649615]
[1756310517034,1e-08,4663.2,4662.9,0.1072]
[1756310517235,1e-08,4663.2,4663.1,2.14449615]
[1756310517569,1e-08,4663.2,4662.8,0.001]
[1756310517939,0.10720001,4663.2,4662.8,0.001]
[1756310518138,0.10720001,4663.2,4662.8,2.14562733]
[1756310518555,0.10720001,4663.2,4662.8,0.001]
[1756310518845,0.1072,4662.9,4662.8,0.001]
[1756310519740,0.51115118,4662.9,4662.8,0.001]
[1756310519964,2.85605106,4662.9,4662.8,0.001]
[1756310520180,5.85605106,4662.9,4662.8,0.001]
[1756310520380,9.78842254,4662.9,4662.8,0.001]
[1756310521249,16.88842254,4662.9,4662.8,0.001]
[1756310522381,16.88842254,4662.9,4662.6,0.001]
[1756310522382,2.14468012,4662.7,4662.6,0.001]
[1756310522583,7.44867362,4662.7,4662.6,0.001]
[1756310523185,7.78451347,4662.7,4662.6,0.001]
[1756310523484,8.08792577,4662.7,4662.6,0.001]
[1756310523692,8.17396377,4662.7,4662.2,0.001]
[1756310523892,0.1072,4662.5,4662.2,0.001]
[1756310524064,1.02842813,4662.4,4662.2,0.001]
[1756310524260,6.27754735,4662.3,4662.2,0.001]
[1756310524493,7.19554735,4662.3,4662.2,0.001]
[1756310524660,10.92754735,4662.3,4662.2,0.001]
[1756310525166,11.03474735,4662.3,4662.2,0.001]
[1756310525368,11.8283651,4662.3,4662.2,0.001]
[1756310526184,8.0963651,4662.3,4662.2,0.001]
[1756310526486,11.8283651,4662.3,4662.2,0.001]
[1756310526674,11.82837115,4662.3,4662.2,0.001]
[1756310527061,8.09637115,4662.3,4662.2,0.001]
[1756310527267,11.82837115,4662.3,4662.2,0.001]
[1756310528390,8.68954155,4662.3,4662.2,0.001]
[1756310528575,10.83440567,4662.3,4662.2,0.001]
[1756310528777,4.95754155,4662.3,4662.2,0.001]
[1756310528980,10.83440567,4662.3,4662.2,0.001]
[1756310529507,8.68954155,4662.3,4662.2,0.001]
[1756310529669,11.70335983,4662.3,4662.2,0.001]
[1756310530374,9.55849571,4662.3,4662.2,0.001]
[1756310531001,11.70335983,4662.3,4662.2,0.001]
[1756310531229,9.55849571,4662.3,4662.2,0.001]
[1756310531536,11.70335983,4662.3,4662.2,0.001]
[1756310533034,4.95754155,4662.3,4662.2,0.001]
[1756310533209,5.69054155,4662.3,4662.2,0.001]
[1756310533606,8.69054155,4662.3,4662.2,0.001]
[1756310534212,4.95754155,4662.3,4662.2,0.001]
[1756310534416,8.69054155,4662.3,4662.2,0.001]
[1756310535618,4.95754155,4662.3,4662.2,0.001]
[1756310535814,8.69054155,4662.3,4662.2,0.001]
[1756310536194,9.77407665,4662.3,4662.2,0.001]
[1756310536396,11.91894077,4662.3,4662.2,0.001]
[1756310536631,9.77407665,4662.3,4662.2,0.001]
[1756310536934,9.77389074,4662.3,4662.2,0.001]
[1756310537140,11.91875486,4662.3,4662.2,0.001]
[1756310538204,12.1189971,4662.3,4662.2,0.001]
[1756310538419,8.3859971,4662.3,4662.2,0.001]
[1756310538604,12.1179971,4662.3,4662.2,0.001]
[1756310539408,12.45385874,4662.3,4662.2,0.001]
[1756310540453,12.45398232,4662.3,4662.2,0.001]
[1756310540803,2.14491012,4662.2,4662.1,0.001]
[1756310541004,7.22840381,4662.2,4662.1,0.001]
[1756310542050,14.32840381,4662.2,4662.1,0.001]
[1756310542945,18.06040381,4662.2,4662.1,0.001]
[1756310543537,18.36381611,4662.2,4662.1,0.001]
[1756310543848,2.14514018,4661.7,4661.6,1e-08]
[1756310544151,2.14514018,4661.7,4660.3,0.001]
[1756310544152,2.14532426,4661.3,4660.3,0.001]
[1756310544329,18.02587149,4661.3,4660.3,0.001]
[1756310544650,2.14550837,4660.9,4660.3,0.001]
[1756310544943,17.13549176,4660.9,4660.3,0.001]
[1756310545334,17.22155976,4660.9,4660.3,0.001]
[1756310545735,17.22255976,4660.9,4660.3,0.001]
[1756310545918,13.48955976,4660.9,4660.3,0.001]
[1756310546118,17.22255976,4660.9,4660.3,0.001]
[1756310547121,13.28948386,4660.9,4660.3,0.001]
[1756310547321,17.13688719,4660.9,4660.3,0.001]
[1756310547642,13.40388719,4660.9,4660.3,0.001]
[1756310547842,17.13688719,4660.9,4660.3,0.001]
[1756310548042,17.13673469,4660.9,4660.3,0.001]
[1756310548947,17.22279969,4660.9,4660.3,0.001]
[1756310549353,13.48979969,4660.9,4660.3,0.001]
[1756310549558,17.22279969,4660.9,4660.3,0.001]
[1756310549846,13.48979969,4660.9,4660.3,0.001]
[1756310550054,17.22279969,4660.9,4660.3,0.001]
[1756310550560,14.13673469,4660.9,4660.3,0.001]
[1756310550731,16.17690345,4660.9,4660.3,0.001]
[1756310551061,16.37731604,4660.9,4660.3,0.001]
[1756310551960,12.64431604,4660.9,4660.3,0.001]
[1756310552164,16.37731604,4660.9,4660.3,0.001]
[1756310552457,12.64431604,4660.9,4660.3,0.001]
[1756310552656,17.46085114,4660.9,4660.3,0.001]
[1756310552958,16.37731604,4660.9,4660.3,0.001]
[1756310553260,16.37731604,4660.9,4660.8,0.021]
[1756310553969,12.75151604,4660.9,4660.8,0.021]
[1756310554173,16.48451604,4660.9,4660.8,0.021]
[1756310556040,16.78792834,4660.9,4660.8,0.021]
[1756310556241,2.14569252,4660.5,4660.3,0.001]
[1756310556451,9.38670019,4660.5,4660.3,0.001]
[1756310556827,7.24100767,4660.5,4660.3,0.001]
[1756310557058,4.04059508,4660.5,4660.3,0.001]
[1756310557266,3.8402,4660.5,4660.3,0.001]
[1756310557435,4.04052751,4660.5,4660.4,2.14673856]
[1756310557649,4.04052751,4660.5,4660.4,2.57609502]
[1756310557650,0.1072,4660.5,4660.4,2.57609502]
[1756310557870,3.733,4660.6,4660.4,2.57609502]
[1756310557871,3.733,4660.6,4660.4,0.43035646]
[1756310558074,3.733,4660.6,4660.4,0.001]
[1756310558879,3.733,4660.6,4660.4,2.14669876]
[1756310559093,3.733,4660.6,4660.5,2.14569252]
[1756310559242,3.93331537,4660.6,4660.5,2.14569252]
[1756310559449,3.8402,4660.7,4660.6,2.14564648]
[1756310559643,4.03952576,4660.7,4660.6,2.14564648]
[1756310560462,0.30752576,4660.7,4660.6,2.14564648]
[1756310560775,0.30752576,4660.7,4660.6,2.57498469]
[1756310560964,0.1072,4660.7,4660.6,2.57498469]
[1756310561173,0.645287,4662.5,4660.9,2.80550837]
[1756310561478,0.1072,4661.9,4661.3,0.1072]
[1756310561679,0.1072,4661.4,4660.5,1.65]
[1756310561849,3.60231961,4661.3,4660.4,0.001]
[1756310562179,2.25289252,4660.5,4660.4,0.001]
[1756310562382,10.12542474,4660.5,4660.4,0.001]
[1756310562776,10.46139614,4660.5,4660.4,0.001]